[Event "GER-ch Youth-U18w 2022"]
[Site "Willingen"]
[Date "2022.06.08"]
[Round "6.5"]
[White "Berghold, Lotta"]
[Black "Schneider, Katharina"]
[Result "1/2-1/2"]
[ECO "D02"]
[WhiteElo "1482"]
[BlackElo "1810"]
[Annotator "NA RC COMBH"]
[PlyCount "63"]
[EventDate "2022.06.05"]
[EventType "swiss"]
[EventRounds "9"]
[EventCountry "GER"]
[SourceTitle "playchess.com"]
[Source "ChessBase"]
[SourceQuality "1"]
[TimeControl "40/4500+30:900+30"]

1. d4 {[%emt 0:00:00]} d5 {[%emt 0:00:00]} 2. Nf3 {[%emt 0:00:00]} e6 {[%emt 0:00:00]} 3. g3 {[%emt 0:00:00]} c5 {[%emt 0:00:00]} 4. Bg2 {[%emt 0:00:00]} Nc6 {[%emt 0:00:00]} 5. dxc5 {[%emt 0:00:00]} Bxc5 {[%emt 0:00:00]} 6. O-O {[%emt 0:00:00]} Nf6 {[%emt 0:00:00]} 7. c4 {[%emt 0:00:00]} O-O {[%emt 0:00:00]} 8. Nc3 {[%emt 0:02:56]} a6 {[%emt 0:05:57]} 9. Bg5 {[%emt 0:07:11]} d4 {[%emt 0:08:02]} 10. Bxf6 {[%emt 0:18:31]} Qxf6 {[%emt 0:04:14]} 11. Ne4 {[%emt 0:00:14]} Qe7 {[%emt 0:00:13]} 12. Nxc5 {[%emt 0:01:34]} Qxc5 {[%emt 0:00:11]} 13. Rc1 {[%emt 0:02:45]} e5 {[%emt 0:04:45]} 14. a3 {[%emt 0:03:49]} a5 {[%emt 0:01:07]} 15. Qa4 {[%emt 0:06:47]} Bg4 {[%emt 0:10:00]} 16. h3 {[%emt 0:11:02]} Bxf3 {[%emt 0:00:24]} 17. Bxf3 {[%emt 0:00:05]} Rfb8 {[%emt 0:08:18]} 18. Qb5 {[%emt 0:02:33]} Qd6 {[%emt 0:00:27]} 19. Rfd1 {[%emt 0:04:06]} Qe6 {[%emt 0:05:46]} 20. Bg2 {[%emt 0:00:18]} a4 {[%emt 0:16:18]} 21. Qd5 {[%emt 0:06:18]} Qe8 {[%emt 0:02:30]} 22. Rd3 {[%emt 0:03:40]} Ra5 {[%emt 0:00:49]} 23. Qe4 {[%emt 0:00:16]} g6 {[%emt 0:02:52]} 24. Qh4 {[%emt 0:03:21]} Kg7 {[%emt 0:00:41]} 25. g4 {[%emt 0:02:17]} e4 {[%emt 0:02:32]} 26. Rd2 {[%emt 0:00:59]} h6 {[%emt 0:02:22]} 27. c5 {[%emt 0:02:07]} Qe5 {[%emt 0:01:59]} 28. g5 {[%emt 0:01:02]} hxg5 {[%emt 0:06:29]} 29. Qxe4 {[%emt 0:00:06]} Rxc5 {[%emt 0:00:32]} 30. Qxe5+ {[%emt 0:02:19]} Rxe5 {[%emt 0:00:09]} 31. Bxc6 {[%emt 0:01:19]} bxc6 {[%emt 0:00:04]} 32. Rxc6 {[%emt 0:00:43]} 1/2-1/2

[Event "GER-ch Youth-U18w 2022"]
[Site "Willingen"]
[Date "2022.06.08"]
[Round "6.6"]
[White "Albayrak, Nese Pinar"]
[Black "Kroemer, Paulina"]
[Result "0-1"]
[ECO "B32"]
[WhiteElo "1683"]
[BlackElo "1583"]
[Annotator "NA RC COMBH"]
[PlyCount "114"]
[EventDate "2022.06.05"]
[EventType "swiss"]
[EventRounds "9"]
[EventCountry "GER"]
[SourceTitle "playchess.com"]
[Source "ChessBase"]
[SourceQuality "1"]
[TimeControl "40/4500+30:900+30"]

1. e4 {[%emt 0:00:00]} c5 {[%emt 0:00:00]} 2. Nf3 {[%emt 0:00:00]} Nc6 {[%emt 0:00:00]} 3. d4 {[%emt 0:00:00]} cxd4 {[%emt 0:00:00]} 4. Nxd4 {[%emt 0:00:00]} Qb6 {[%emt 0:00:00]} 5. Nb3 {[%emt 0:00:00]} Nf6 {[%emt 0:00:00]} 6. Nc3 {[%emt 0:00:00]} e6 {[%emt 0:00:00]} 7. Qe2 {[%emt 0:00:00]} Bb4 {[%emt 0:00:00]} 8. Bd2 {[%emt 0:00:00]} O-O {[%emt 0:02:15]} 9. a3 {[%emt 0:00:00]} Be7 {[%emt 0:02:26]} 10. e5 {[%emt 0:00:00]} Nd5 {[%emt 0:03:00]} 11. O-O-O {[%emt 0:00:00]} a6 {[%emt 0:06:41]} 12. g4 {[%emt 0:00:00]} Qc7 {[%emt 0:01:46]} 13. Nxd5 {[%emt 0:00:00]} exd5 {[%emt 0:00:06]} 14. f4 {[%emt 0:00:03]} d6 {[%emt 0:01:04]} 15. Bc3 {[%emt 0:05:29]} dxe5 {[%emt 0:00:54]} 16. fxe5 {[%emt 0:04:54]} Be6 {[%emt 0:02:41]} 17. h4 {[%emt 0:09:33]} Rac8 {[%emt 0:03:20]} 18. g5 {[%emt 0:09:02]} d4 {[%emt 0:04:26]} 19. Nxd4 {[%emt 0:09:07]} Nxd4 {[%emt 0:00:47]} 20. Bxd4 {[%emt 0:00:44]} Bg4 {[%emt 0:02:50]} 21. Qd2 {[%emt 0:04:35]} Bxd1 {[%emt 0:01:15]} 22. Qxd1 {[%emt 0:00:08]} Rfd8 {[%emt 0:02:44]} 23. c3 {[%emt 0:03:45]} Bc5 {[%emt 0:03:37]} 24. Kb1 {[%emt 0:03:22]} Qb6 {[%emt 0:03:30]} 25. Bh3 {[%emt 0:05:28]} Rc7 {[%emt 0:04:17]} 26. Qa4 {[%emt 0:07:35]} Bxd4 {[%emt 0:03:22]} 27. cxd4 {[%emt 0:10:31]} Qxd4 {[%emt 0:01:28]} 28. Qxd4 {[%emt 0:00:33]} Rxd4 {[%emt 0:00:04]} 29. h5 {[%emt 0:00:57]} Re7 {[%emt 0:01:23]} 30. Rc1 {[%emt 0:01:12]} Rd8 {[%emt 0:00:27]} 31. Re1 {[%emt 0:03:16]} Rde8 {[%emt 0:01:10]} 32. e6 {[%emt 0:01:55]} fxe6 {[%emt 0:00:04]} 33. g6 {[%emt 0:00:07]} e5 {[%emt 0:02:04]} 34. Bf5 {[%emt 0:01:05]} hxg6 {[%emt 0:02:20]} 35. hxg6 {[%emt 0:02:41]} e4 {[%emt 0:01:40]} 36. Bg4 {[%emt 0:01:09]} e3 {[%emt 0:01:40]} 37. Bd1 {[%emt 0:00:42]} Re6 {[%emt 0:04:46]} 38. Bb3 {[%emt 0:01:27]} Kf8 {[%emt 0:00:09]} 39. Bxe6 {[%emt 0:00:52]} Rxe6 {[%emt 0:00:04]} 40. Kc2 {[%emt 0:00:16]} Ke7 {[%emt 0:00:29]} 41. Kd1 {[%emt 0:16:53]} e2+ {[%emt 0:18:18]} 42. Kd2 {[%emt 0:00:51]} Kf6 {[%emt 0:00:12]} 43. a4 {[%emt 0:00:00]} Kxg6 {[%emt 0:00:00]} 44. Rg1+ {[%emt 0:00:00]} Kf6 {[%emt 0:00:00]} 45. Ke1 {[%emt 0:00:00]} g5 {[%emt 0:00:00]} 46. Rg3 {[%emt 0:00:00]} Kf5 {[%emt 0:00:00]} 47. Rc3 {[%emt 0:00:00]} Re7 {[%emt 0:00:00]} 48. Rc4 {[%emt 0:00:00]} g4 {[%emt 0:00:00]} 49. Rc8 {[%emt 0:00:00]} Kf4 {[%emt 0:00:00]} 50. Rg8 {[%emt 0:00:00]} Re4 {[%emt 0:00:00]} 51. Rg7 {[%emt 0:00:00]} g3 {[%emt 0:00:00]} 52. Rxb7 {[%emt 0:00:00]} g2 {[%emt 0:00:00]} 53. Rg7 {[%emt 0:00:00]} Kf3 {[%emt 0:00:00]} 54. b3 {[%emt 0:00:00]} Rg4 {[%emt 0:00:00]} 55. Rf7+ {[%emt 0:00:00]} Kg3 {[%emt 0:00:00]} 56. Kxe2 {[%emt 0:00:00]} g1=Q 57. Rf3+ Kh4 {[%emt 0:00:00]} 0-1

[Event "GER-ch Youth-U18w 2022"]
[Site "Willingen"]
[Date "2022.06.08"]
[Round "6.7"]
[White "Yue, Qizhou"]
[Black "Goetten Wagner, Julia"]
[Result "1/2-1/2"]
[ECO "C48"]
[WhiteElo "1715"]
[BlackElo "1631"]
[Annotator "NA RC COMBH"]
[PlyCount "145"]
[EventDate "2022.06.05"]
[EventType "swiss"]
[EventRounds "9"]
[EventCountry "GER"]
[SourceTitle "playchess.com"]
[Source "ChessBase"]
[SourceQuality "1"]
[TimeControl "40/4500+30:900+30"]

1. e4 {[%emt 0:00:00]} e5 {[%emt 0:00:00]} 2. Nf3 {[%emt 0:00:00]} Nc6 {[%emt 0:00:00]} 3. Nc3 {[%emt 0:00:00]} Nf6 {[%emt 0:00:00]} 4. Bb5 {[%emt 0:00:00]} Bc5 {[%emt 0:00:00]} 5. O-O {[%emt 0:00:00]} d6 {[%emt 0:00:00]} 6. d3 {[%emt 0:00:00]} O-O {[%emt 0:00:00]} 7. Bg5 {[%emt 0:00:00]} Be6 {[%emt 0:00:08]} 8. Ba4 {[%emt 0:04:26]} h6 {[%emt 0:08:25]} 9. Bh4 {[%emt 0:03:58]} Nd4 {[%emt 0:03:07]} 10. Nxd4 {[%emt 0:03:37]} Bxd4 {[%emt 0:00:19]} 11. Bb3 {[%emt 0:01:49]} c6 {[%emt 0:04:02]} 12. Re1 {[%emt 0:05:07]} g5 {[%emt 0:06:36]} 13. Bg3 {[%emt 0:00:15]} Bg4 {[%emt 0:00:22]} 14. Qc1 {[%emt 0:02:23]} Nh5 {[%emt 0:01:29]} 15. Ne2 {[%emt 0:05:06]} Bxe2 {[%emt 0:04:15]} 16. Rxe2 {[%emt 0:00:08]} Nxg3 {[%emt 0:00:07]} 17. hxg3 {[%emt 0:00:08]} Kg7 {[%emt 0:00:31]} 18. c3 {[%emt 0:00:49]} Bb6 {[%emt 0:00:18]} 19. Qd2 {[%emt 0:02:37]} Qd7 {[%emt 0:02:53]} 20. d4 {[%emt 0:01:29]} Rad8 {[%emt 0:10:32]} 21. Rd1 {[%emt 0:03:56]} Qg4 {[%emt 0:01:55]} 22. Qd3 {[%emt 0:02:00]} h5 {[%emt 0:04:57]} 23. Qf3 {[%emt 0:03:25]} Qxf3 {[%emt 0:02:47]} 24. gxf3 {[%emt 0:00:08]} exd4 {[%emt 0:00:56]} 25. cxd4 {[%emt 0:00:10]} Rh8 {[%emt 0:05:53]} 26. Kg2 {[%emt 0:21:16]} h4 {[%emt 0:03:45]} 27. d5 {[%emt 0:01:04]} Rh6 {[%emt 0:03:10]} 28. Rh1 {[%emt 0:03:05]} Rdh8 {[%emt 0:01:58]} 29. Ba4 {[%emt 0:06:01]} h3+ {[%emt 0:04:45]} 30. Kh2 {[%emt 0:00:47]} cxd5 {[%emt 0:00:57]} 31. exd5 {[%emt 0:00:10]} Rf6 32. f4 {[%emt 0:03:01]} gxf4 {[%emt 0:00:41]} 33. gxf4 {[%emt 0:01:54]} Rxf4 {[%emt 0:00:07]} 34. Rg1+ {[%emt 0:00:47]} Kf6 {[%emt 0:00:51]} 35. Bd7 {[%emt 0:02:14]} Bd4 {[%emt 0:01:57]} 36. Rg4 {[%emt 0:03:07]} Be5 {[%emt 0:03:04]} 37. Rxf4+ {[%emt 0:00:55]} Bxf4+ {[%emt 0:00:06]} 38. Kh1 {[%emt 0:00:11]} h2 {[%emt 0:00:24]} 39. Re4 {[%emt 0:00:45]} Kg5 {[%emt 0:08:28]} 40. b3 {[%emt 0:02:23]} Rd8 {[%emt 0:04:04]} 41. Re7 {[%emt 0:00:00]} Kf6 {[%emt 0:00:00]} 42. Re4 {[%emt 0:00:00]} Rxd7 {[%emt 0:00:00]} 43. Rxf4+ {[%emt 0:00:00]} Ke5 {[%emt 0:00:00]} 44. Ra4 {[%emt 0:00:00]} b6 {[%emt 0:00:00]} 45. Kxh2 {[%emt 0:00:00]} Kxd5 {[%emt 0:00:00]} 46. Kg3 {[%emt 0:00:00]} a5 {[%emt 0:00:00]} 47. Rc4 {[%emt 0:00:40]} Re7 {[%emt 0:00:05]} 48. Kf3 {[%emt 0:01:35]} f5 {[%emt 0:01:21]} 49. Rf4 {[%emt 0:01:28]} Ke5 {[%emt 0:01:15]} 50. Ke3 {[%emt 0:02:27]} Rc7 {[%emt 0:00:31]} 51. Rh4 {[%emt 0:01:28]} b5 {[%emt 0:03:53]} 52. Kd3 {[%emt 0:00:50]} Rc5 {[%emt 0:02:13]} 53. a3 {[%emt 0:01:25]} Rd5+ {[%emt 0:01:36]} 54. Kc3 {[%emt 0:03:42]} Rd1 {[%emt 0:01:05]} 55. a4 {[%emt 0:04:16]} bxa4 {[%emt 0:04:30]} 56. Rxa4 {[%emt 0:00:32]} Rd5 {[%emt 0:00:08]} 57. f4+ {[%emt 0:01:41]} Kf6 {[%emt 0:00:10]} 58. Kc4 {[%emt 0:00:59]} Ke6 {[%emt 0:00:54]} 59. Ra2 {[%emt 0:01:14]} Rc5+ {[%emt 0:00:17]} 60. Kd4 {[%emt 0:00:28]} Kd7 {[%emt 0:00:51]} 61. Rg2 {[%emt 0:02:00]} Rb5 {[%emt 0:00:32]} 62. Kc4 {[%emt 0:01:38]} Kc6 {[%emt 0:00:14]} 63. Kc3 {[%emt 0:01:59]} Rb4 {[%emt 0:00:18]} 64. Ra2 {[%emt 0:00:58]} Kb5 {[%emt 0:00:57]} 65. Rd2 {[%emt 0:00:57]} Rxf4 {[%emt 0:01:20]} 66. Rxd6 {[%emt 0:00:10]} Kc5 {[%emt 0:02:17]} 67. Ra6 {[%emt 0:01:37]} Kb5 {[%emt 0:00:10]} 68. Rd6 {[%emt 0:00:40]} Rf3+ {[%emt 0:03:00]} 69. Kc2 {[%emt 0:00:32]} Kc5 {[%emt 0:01:14]} 70. Ra6 {[%emt 0:00:21]} Kb5 {[%emt 0:00:07]} 71. Rd6 {[%emt 0:00:45]} a4 {[%emt 0:00:55]} 72. bxa4+ {[%emt 0:00:14]} Kxa4 {[%emt 0:00:04]} 73. Rd3 {[%emt 0:01:13]} 1/2-1/2

[Event "GER-ch Youth-U18w 2022"]
[Site "Willingen"]
[Date "2022.06.08"]
[Round "6.8"]
[White "Wilmink, Anna"]
[Black "Gröschel, Karoline"]
[Result "1-0"]
[ECO "B43"]
[WhiteElo "1700"]
[BlackElo "1546"]
[Annotator "NA RC COMBH"]
[PlyCount "59"]
[EventDate "2022.06.05"]
[EventType "swiss"]
[EventRounds "9"]
[EventCountry "GER"]
[SourceTitle "playchess.com"]
[Source "ChessBase"]
[SourceQuality "1"]
[TimeControl "40/4500+30:900+30"]

1. e4 {[%emt 0:00:00]} c5 {[%emt 0:00:00]} 2. Nf3 {[%emt 0:00:00]} e6 {[%emt 0:00:00]} 3. d4 {[%emt 0:00:00]} cxd4 {[%emt 0:00:00]} 4. Nxd4 {[%emt 0:00:00]} a6 {[%emt 0:00:00]} 5. Nc3 {[%emt 0:00:00]} b5 {[%emt 0:00:00]} 6. a3 {[%emt 0:00:00]} Bb7 {[%emt 0:00:00]} 7. Bd3 {[%emt 0:00:00]} Qc7 {[%emt 0:00:00]} 8. O-O {[%emt 0:00:00]} Nf6 {[%emt 0:00:00]} 9. Kh1 {[%emt 0:00:00]} d6 {[%emt 0:00:00]} 10. f4 {[%emt 0:00:00]} Be7 {[%emt 0:00:00]} 11. Qe2 {[%emt 0:01:21]} Nbd7 {[%emt 0:00:00]} 12. Bd2 {[%emt 0:00:54]} O-O {[%emt 0:00:57]} 13. Rae1 {[%emt 0:02:58]} Nc5 {[%emt 0:06:39]} 14. Rf3 {[%emt 0:02:50]} d5 {[%emt 0:09:59]} 15. e5 {[%emt 0:04:03]} Nfe4 {[%emt 0:01:15]} 16. Bxe4 {[%emt 0:07:14]} Nxe4 {[%emt 0:01:34]} 17. Nxe4 {[%emt 0:03:45]} dxe4 {[%emt 0:00:15]} 18. Rh3 {[%emt 0:01:13]} Rfd8 {[%emt 0:04:00]} 19. Qh5 {[%emt 0:04:08]} h6 {[%emt 0:01:44]} 20. c3 {[%emt 0:02:19]} Bf8 {[%emt 0:07:04]} 21. Ree3 {[%emt 0:10:22]} Rac8 {[%emt 0:06:38]} 22. Kg1 {[%emt 0:02:40]} Qb6 {[%emt 0:11:11]} 23. Reg3 {[%emt 0:05:50]} g6 {[%emt 0:11:26]} 24. Be3 {[%emt 0:07:55]} Kh7 {[%emt 0:02:11]} 25. Qg5 {[%emt 0:04:32]} Rd7 {[%emt 0:06:16]} 26. Rxh6+ {[%emt 0:06:32]} Kg8 {[%emt 0:02:12]} 27. Rgh3 {[%emt 0:01:00]} Bg7 {[%emt 0:00:01]} 28. Qh4 {[%emt 0:01:32]} f5 {[%emt 0:03:44]} 29. Rxg6 {[%emt 0:07:50]} Qd8 {[%emt 0:01:43]} 30. Rg4 1-0

[Event "GER-ch Youth-U18w 2022"]
[Site "Willingen"]
[Date "2022.06.08"]
[Round "6.9"]
[White "Basovskiy, Jana"]
[Black "Jacoby, Angelina"]
[Result "1-0"]
[ECO "B01"]
[WhiteElo "1938"]
[BlackElo "1535"]
[Annotator "TA"]
[PlyCount "61"]
[EventDate "2022.06.05"]
[EventType "swiss"]
[EventRounds "9"]
[EventCountry "GER"]
[SourceTitle "playchess.com"]
[Source "ChessBase"]
[SourceQuality "1"]
[TimeControl "40/4500+30:900+30"]

{[%evp 10,61,52,49,55,58,52,55,48,43,43,50,47,60,86,83,120,121,175,53,235,259,243,232,238,239,387,379,402,398,384,393,385,297,395,396,670,659,617,511,785,786,794,712,960,1003,982,953,889,853,1900,1266,1237,1168]} 1. e4 {[%emt 0:00:00]} d5 {[%emt 0:00:00]} 2. exd5 {[%emt 0:00:00]} Qxd5 {[%emt 0:00:00]} 3. Nc3 {[%emt 0:00:00]} Qd8 {[%emt 0:00:00]} 4. d4 {[%emt 0:00:00]} Nf6 {[%emt 0:00:00]} 5. Nf3 {[%emt 0:00:00]} Bg4 {[%emt 0:00:00]} 6. h3 {[%emt 0:00:00]} Bxf3 {[%emt 0:00:00] B01: Scandinavian Defence.} 7. Qxf3 {[%emt 0:00:00]} c6 {[%emt 0:00:00]} 8. Be3 {[%emt 0:00:00]} e6 {[%emt 0:00:00] White is slightly better.} 9. Bd3 {[%emt 0:00:00]} Nbd7 {[%emt 0:00:00]} 10. O-O-O $1 {[%emt 0:00:00]} Bb4 {[%emt 0:00:00]} 11. Ne2 {[%emt 0:00:00]} O-O {[%emt 0:00:55]} (11... Qa5 12. Kb1 Qd5 13. Qxd5 exd5 14. Bf4 O-O-O 15. Ng3 g6 16. c3 Ba5 17. Rhe1 Rde8 18. Nf1 Rxe1 19. Rxe1 {½-½ (49) Basovskiy,J (1760)-Jacoby,A (1630) Willingen 2020}) 12. g4 {[%emt 0:00:00] [#] White is more active.} Qa5 $146 {[%emt 0:10:05] [#]} ({Predecessor:} 12... Nd5 13. h4 Qc7 14. g5 Rae8 15. c4 Nxe3 16. fxe3 c5 17. a3 Ba5 18. Kb1 f5 19. gxf6 Nxf6 {1-0 (26) Kuznetsov,A (2419)-Mironov,V (2229) ICCF email 2011}) 13. Kb1 {[%emt 0:00:00]} Bd6 {[%emt 0:11:44]} (13... Nd5 $16 {is a better defense.}) 14. g5 {[%emt 0:06:27]} (14. c4 $18) 14... Nd5 $2 {[%emt 0:01:33] Black cannot hold the game after this.} (14... Qd5 $14 15. Ng1 Qxf3 16. Nxf3 Nd5) 15. Qe4 $18 {[%emt 0:00:20][%csl Gd3][%cal Re4h7]} g6 {[%emt 0:00:36] [#]} 16. Bd2 {[%emt 0:00:23]} Qd8 {[%emt 0:05:56]} 17. h4 {[%emt 0:01:32][%cal Bh3h4,Bh4h5][%mdl 32] Threatens to win with h5.} Qe7 {[%emt 0:02:34]} (17... Re8 $142 18. h5 Nf8 19. hxg6 fxg6) 18. h5 {[%emt 0:01:49]} f5 {[%emt 0:02:03]} 19. gxf6 {[%emt 0:03:02]} N5xf6 {[%emt 0:10:34]} 20. Qg2 {[%emt 0:00:30]} g5 {[%emt 0:01:18]} 21. Qxg5+ {[%emt 0:01:21]} Qg7 {[%emt 0:01:33]} 22. Qh4 {[%emt 0:05:02]} Kf7 $2 {[%emt 0:01:04]} (22... Kh8 23. Rhg1 Qe7) 23. Rhg1 {[%emt 0:09:54] White is clearly winning.} Qh8 {[%emt 0:00:46]} 24. f4 {[%emt 0:02:41][%cal Bf2f4,Bf4f5][%mdl 32] aiming for f5.} Ke7 {[%emt 0:00:42]} (24... Ke8 $142 25. f5 e5) 25. f5 {[%emt 0:02:20]} e5 {[%emt 0:03:11]} 26. Bc3 {[%emt 0:01:22]} Rg8 {[%emt 0:00:27]} 27. dxe5 {[%emt 0:00:27]} Bxe5 {[%emt 0:00:41]} 28. Bxe5 {[%emt 0:00:58]} Nxe5 {[%emt 0:00:06]} 29. Qb4+ {[%emt 0:00:08]} Kf7 {[%emt 0:02:07]} 30. Qxb7+ {[%emt 0:20:48]} Nfd7 {[%emt 0:01:09] [#]} 31. Bc4+ $1 {[%emt 0:00:13][%mdl 512] Weighted Error Value: White=0.18 (very precise) /Black=0.63} 1-0

[Event "GER-ch Youth-U18w 2022"]
[Site "Willingen"]
[Date "2022.06.08"]
[Round "6.10"]
[White "Kieckbusch, Lotta"]
[Black "Kosak, Karolina"]
[Result "1/2-1/2"]
[ECO "C45"]
[WhiteElo "1207"]
[BlackElo "1471"]
[Annotator "NA RC COMBH"]
[PlyCount "108"]
[EventDate "2022.06.05"]
[EventType "swiss"]
[EventRounds "9"]
[EventCountry "GER"]
[SourceTitle "playchess.com"]
[Source "ChessBase"]
[SourceQuality "1"]
[TimeControl "40/4500+30:900+30"]

1. e4 {[%emt 0:00:00]} e5 {[%emt 0:00:00]} 2. Nf3 {[%emt 0:00:00]} Nc6 {[%emt 0:00:00]} 3. d4 {[%emt 0:00:00]} exd4 {[%emt 0:00:00]} 4. Nxd4 {[%emt 0:00:00]} Bc5 {[%emt 0:00:00]} 5. Nb3 {[%emt 0:00:00]} Bb6 {[%emt 0:00:00]} 6. Qe2 {[%emt 0:00:00]} d6 {[%emt 0:00:00]} 7. Nc3 {[%emt 0:00:00]} Qf6 {[%emt 0:00:00]} 8. f3 {[%emt 0:00:00]} Nge7 {[%emt 0:00:59]} 9. Be3 {[%emt 0:00:00]} Bd7 {[%emt 0:17:16]} 10. O-O-O {[%emt 0:00:00]} O-O-O {[%emt 0:03:08]} 11. Nd5 {[%emt 0:20:22]} Nxd5 {[%emt 0:01:29]} 12. Rxd5 {[%emt 0:10:50]} Ne5 {[%emt 0:12:21]} 13. Bxb6 axb6 {[%emt 0:01:00]} 14. Qd2 {[%emt 0:18:28]} Be6 {[%emt 0:15:24]} 15. Rb5 {[%emt 0:06:47]} Rd7 {[%emt 0:12:13]} 16. Qc3 {[%emt 0:09:10]} Kb8 {[%emt 0:02:07]} 17. a4 {[%emt 0:03:51]} d5 {[%emt 0:05:39]} 18. a5 {[%emt 0:02:21]} Rd6 {[%emt 0:07:05]} 19. axb6 {[%emt 0:00:56]} Rxb6 {[%emt 0:00:50]} 20. Rxb6 {[%emt 0:04:57]} cxb6 {[%emt 0:00:01]} 21. Qb4 {[%emt 0:00:50]} Qf4+ {[%emt 0:02:04]} 22. Kb1 {[%emt 0:00:53]} Nc6 {[%emt 0:01:27]} 23. Qxb6 {[%emt 0:00:35]} dxe4 {[%emt 0:00:48]} 24. Nc5 {[%emt 0:00:48]} Bc8 {[%emt 0:00:40]} 25. Bb5 {[%emt 0:03:43]} Qd6 {[%emt 0:01:25]} 26. Nxe4 {[%emt 0:00:39]} Qc7 {[%emt 0:00:51]} 27. Qxc7+ {[%emt 0:02:01]} Kxc7 {[%emt 0:00:02]} 28. Rd1 {[%emt 0:01:06]} f5 {[%emt 0:01:39]} 29. Ng5 {[%emt 0:00:59]} h6 {[%emt 0:00:32]} 30. Nf7 {[%emt 0:00:14]} Rf8 {[%emt 0:00:23]} 31. Bxc6 {[%emt 0:00:38]} bxc6 {[%emt 0:00:29]} 32. Ne5 {[%emt 0:00:15]} Re8 {[%emt 0:00:17]} 33. f4 {[%emt 0:00:22]} g5 {[%emt 0:00:06]} 34. g3 {[%emt 0:00:22]} h5 {[%emt 0:00:40]} 35. Ng6 {[%emt 0:00:51]} gxf4 {[%emt 0:01:21]} 36. Nxf4 {[%emt 0:00:05]} Rh8 {[%emt 0:00:40]} 37. Ng6 {[%emt 0:00:31]} Rg8 {[%emt 0:00:27]} 38. Ne5 {[%emt 0:00:52]} Rh8 {[%emt 0:00:32]} 39. Rd3 {[%emt 0:00:40]} Ba6 {[%emt 0:00:32]} 40. Rc3 {[%emt 0:00:32]} Rh6 {[%emt 0:00:27]} 41. Rf3 {[%emt 0:15:47]} Rf6 {[%emt 0:00:00]} 42. Rf4 {[%emt 0:00:00]} Be2 {[%emt 0:00:00]} 43. c3 Kd6 {[%emt 0:00:00]} 44. Nf3 {[%emt 0:00:00]} Bxf3 {[%emt 0:00:00]} 45. Rxf3 {[%emt 0:00:00]} Ke5 {[%emt 0:00:18]} 46. Rf4 {[%emt 0:00:00]} Rh6 {[%emt 0:02:39]} 47. Kc2 {[%emt 0:00:00]} Kf6 {[%emt 0:05:50]} 48. Kd3 {[%emt 0:00:00]} Ke5 {[%emt 0:02:41]} 49. Kc4 {[%emt 0:00:00]} h4 {[%emt 0:04:25]} 50. Rf3 {[%emt 0:00:00]} hxg3 {[%emt 0:00:50]} 51. hxg3 {[%emt 0:00:00]} Ke4 {[%emt 0:00:41]} 52. Rd3 {[%emt 0:00:00]} Rg6 {[%emt 0:01:00]} 53. Rd4+ {[%emt 0:00:00]} Ke5 {[%emt 0:00:36]} 54. Rd3 {[%emt 0:00:00]} Ke4 1/2-1/2

[Event "GER-ch Youth-U18w 2022"]
[Site "Willingen"]
[Date "2022.06.08"]
[Round "6.11"]
[White "Sokyrko, Sofiia"]
[Black "Mueller, Sophie Charlotte"]
[Result "0-1"]
[ECO "C41"]
[WhiteElo "1368"]
[BlackElo "1509"]
[Annotator "NA RC COMBH"]
[PlyCount "24"]
[EventDate "2022.06.05"]
[EventType "swiss"]
[EventRounds "9"]
[EventCountry "GER"]
[SourceTitle "playchess.com"]
[Source "ChessBase"]
[SourceQuality "1"]
[TimeControl "40/4500+30:900+30"]

1. e4 {[%emt 0:00:00]} e5 {[%emt 0:00:00]} 2. Nf3 {[%emt 0:00:00]} d6 {[%emt 0:00:00]} 3. Bc4 {[%emt 0:00:00]} Be7 {[%emt 0:00:00]} 4. d4 {[%emt 0:00:00]} exd4 {[%emt 0:00:00]} 5. c3 {[%emt 0:00:00]} Nf6 {[%emt 0:00:00]} 6. Qb3 {[%emt 0:00:00]} O-O {[%emt 0:00:00]} 7. e5 {[%emt 0:00:00]} d5 {[%emt 0:01:31]} 8. exf6 {[%emt 0:00:00]} dxc4 {[%emt 0:00:31]} 9. fxe7 {[%emt 0:00:00]} Qxe7+ {[%emt 0:00:12]} 10. Kd2 {[%emt 0:00:00]} cxb3 {[%emt 0:00:13]} 11. axb3 {[%emt 0:00:00]} dxc3+ {[%emt 0:00:19]} 12. Nxc3 {[%emt 0:00:00]} Rd8+ 0-1